fUSD/lending_fUSD_20250112
["ID","MTS","AMOUNT","RATE_DAILY","PERIOD"]
[348595966,1736658640982,-500.0,9.997e-05,2]
[348595967,1736658640992,-500.0,9.997e-05,2]
[348595968,1736658641002,-500.0,9.997e-05,2]
[348595969,1736658641011,-3726.74,9.997e-05,2]
[348595970,1736658641025,-500.0,9.997e-05,2]
[348595971,1736658641034,-838.13,9.997e-05,2]
[348595972,1736658641043,-711.5,9.997e-05,2]
[348595973,1736658641053,-500.0,9.997e-05,2]
[348595974,1736658641062,-500.0,9.997e-05,2]
[348595975,1736658641072,-500.0,9.997e-05,2]
[348595976,1736658641081,-500.0,9.997e-05,2]
[348595977,1736658641090,-508.96,9.997e-05,2]
[348595978,1736658641100,-500.0,9.997e-05,2]
[348595979,1736658641109,-500.0,9.997e-05,2]
[348595980,1736658641118,-500.0,9.997e-05,2]
[348595981,1736658641127,-2060.76,9.997e-05,2]
[348595982,1736658641136,-500.0,9.997e-05,2]
[348595983,1736658641145,-1087.17,9.997e-05,2]
[348595984,1736658641155,-500.0,9.997e-05,2]
[348595985,1736658641164,-500.0,9.997e-05,2]
[348595986,1736658641173,-500.0,9.997e-05,2]
[348595987,1736658641182,-1136.3,9.997e-05,2]
[348595988,1736658641191,-500.0,9.997e-05,2]
[348595989,1736658641200,-500.0,9.997e-05,2]
[348595990,1736658641210,-500.0,9.997e-05,2]
[348595991,1736658641219,-500.0,9.997e-05,2]
[348595992,1736658641228,-581.67,9.997e-05,2]
[348595993,1736658641237,-500.0,9.997e-05,2]
[348595994,1736658641246,-500.0,9.997e-05,2]
[348595995,1736658641255,-500.0,9.997e-05,2]
[348595996,1736658641264,-2350.45,9.997e-05,2]
[348595997,1736658641274,-500.0,9.997e-05,2]
[348595998,1736658641283,-1166.3,9.997e-05,2]
[348595999,1736658641292,-500.0,9.998e-05,2]
[348596000,1736658641301,-636.03,9.998e-05,2]
[348596001,1736658641310,-500.0,9.998e-05,2]
[348596002,1736658641320,-909.06,9.998e-05,2]
[348596003,1736658641329,-328.052216,9.998e-05,2]
[348596004,1736658641338,-1091.48,9.998e-05,2]
[348596005,1736658641347,-405.884316,9.998e-05,2]
[348596006,1736658641356,-515.83,9.998e-05,2]
[348596007,1736658641366,-1066.05931314,9.999e-05,3]
[348596008,1736658641375,-1066.05931311,9.999e-05,3]
[348596009,1736658641384,-1066.05931314,9.999e-05,3]
[348596010,1736658641393,-1066.05931314,9.999e-05,3]
[348596011,1736658641402,-1066.05931314,9.999e-05,3]
[348596012,1736658641411,-1066.05931314,9.999e-05,3]
[348596013,1736658641420,-500.0,9.999e-05,2]
[348596014,1736658641430,-1442.83,9.999e-05,2]
[348596015,1736658641439,-962.22,9.999e-05,2]
[348596016,1736658641448,-150.0,9.999e-05,2]
[348596017,1736658641457,-150.0,9.999e-05,2]
[348596018,1736658641467,-150.0,9.999e-05,2]
[348596019,1736658641476,-2015.0,9.999e-05,2]
[348596020,1736658641485,-1266.166,9.999e-05,2]
[348596021,1736658641494,-1861.0,9.999e-05,2]
[348596022,1736658641504,-1259.0,9.999e-05,2]
[348596023,1736658641513,-914.595,9.999e-05,2]
[348596024,1736658641522,-820.0,9.999e-05,2]
[348596025,1736658641532,-537.0,9.999e-05,2]
[348596026,1736658641541,-3977.0,9.999e-05,2]
[348596027,1736658641550,-9624.0,9.999e-05,2]
[348596028,1736658641559,-150.0,9.999e-05,2]
[348596029,1736658641569,-593.528,9.999e-05,2]
[348596030,1736658641579,-42392.7007721,0.0001,2]
[348596031,1736658641619,-342.108,0.0001,2]
[348596032,1736658641646,-3164.80980677,0.0001,2]
[348596038,1736658643083,-13131.96490288,0.0001,2]
[348596039,1736658643244,-329.19,0.0001,2]
[348596040,1736658643256,-12299.65684619,0.0001,2]
[348596041,1736658643267,-3281.28781095,0.0001,2]
[348596042,1736658643279,-2847.59268996,0.0001,2]
[348596043,1736658643300,-5189.4370075,0.0001,2]
[348596047,1736658646032,-500.0,9.995e-05,2]
[348596048,1736658646042,-500.0,9.997e-05,2]
[348596049,1736658646052,-717.1631246,0.0001,2]
[348596050,1736658646065,-6660.0,0.0001,2]
[348596051,1736658646088,-388.91935723,0.0001,2]
[348596052,1736658646145,-11906.29051931,0.0001,2]
[348596053,1736658646200,-625.32029203,0.0001,2]
[348596054,1736658684099,1144.66,8.219e-05,2]
[348596055,1736658734624,500.0,8.464e-05,2]
[348596056,1736658735222,500.0,8.464e-05,2]
[348596058,1736659533486,1154.79,8.219e-05,2]
[348596085,1736659832165,-250.0,8.673e-05,2]
[348596086,1736659832176,-250.0,8.676e-05,2]
[348596087,1736659832185,-1000.0,8.809e-05,2]
[348596088,1736659832195,-150.0,8.933e-05,2]
[348596089,1736659832206,-150.0,9e-05,2]
[348596090,1736659832216,-150.0,9e-05,2]
[348596091,1736659832227,-150.52986476,9e-05,2]
[348596092,1736659832236,-150.14260049,9e-05,2]
[348596093,1736659832245,-150.0,9e-05,2]
[348596094,1736659832254,-284.54368761,9e-05,2]
[348596095,1736659832264,-169.01579114,9e-05,2]
[348596096,1736659832273,-150.0,9e-05,2]
[348596097,1736659832284,-150.17197975,9e-05,2]
[348596098,1736659832294,-158.78090631,9e-05,2]
[348596099,1736659832304,-171.77794359,9e-05,2]
[348596100,1736659832314,-150.10418721,9e-05,2]
[348596101,1736659832323,-150.0,9e-05,2]
[348596102,1736659832333,-167.09,9.031e-05,2]
[348596103,1736659832343,-250.0,9.06e-05,2]
[348596104,1736659832352,-589.38647202,9.098e-05,2]
[348596105,1736659832364,-345.08781611,9.098e-05,2]
[348596106,1736659832397,-523.0307022,9.098e-05,2]
[348596107,1736659832447,-3900.93500967,9.098e-05,2]
[348596108,1736659832457,-192.48,9.098e-05,2]
[348596109,1736659832467,-212.67,9.119e-05,2]
[348596110,1736659832477,-168.56,9.197e-05,2]
[348596111,1736659832486,-150.0,9.258e-05,2]
[348596112,1736659832495,-150.0,9.333e-05,2]
[348596113,1736659832506,-150.0,9.365e-05,2]
[348596114,1736659832517,-150.0,9.373e-05,2]
[348596115,1736659832527,-150.0,9.419e-05,2]
[348596116,1736659832537,-336.35499033,9.5e-05,2]
[348596117,1736659832558,-124.23500967,9.5e-05,2]
[348596118,1736659832568,-300.0,9.598e-05,2]
[348596119,1736659832579,-150.0,9.667e-05,2]
[348596120,1736659832591,-150.0,9.798e-05,2]
[348596121,1736659832600,-500.0,9.799e-05,2]
[348596122,1736659832610,-2189.84,9.799e-05,2]
[348596123,1736659832625,-3200.69,9.799e-05,2]
[348596125,1736659832634,-1953.98,9.799e-05,2]
[348596127,1736659832643,-500.0,9.799e-05,2]
[348596129,1736659832652,-1236.25,9.799e-05,2]
[348596131,1736659832662,-3329.24,9.799e-05,2]
[348596133,1736659832672,-500.0,9.799e-05,2]
[348596135,1736659832681,-500.0,9.799e-05,2]
[348596137,1736659832691,-1158.79,9.799e-05,2]
[348596139,1736659832701,-500.0,9.799e-05,2]
[348596141,1736659832711,-500.0,9.799e-05,2]
[348596143,1736659832721,-724.00338828,9.8e-05,2]
[348596257,1736659838064,-500.0,9.799e-05,2]
[348596258,1736659838075,-512.1685,9.799e-05,2]
[348596259,1736659838086,-1339.80638586,9.799e-05,2]
[348596260,1736659838134,-197.23511414,9.799e-05,2]
[348596261,1736659838144,-500.0,9.799e-05,2]
[348596262,1736659838155,-6416.11903496,9.8e-05,2]
[348596263,1736659838301,-1069.24918654,9.8e-05,2]
[348596329,1736659840242,-978.24000001,9.8e-05,2]
[348596330,1736659840253,-395.251,9.8e-05,2]
[348596331,1736659840302,-375.46144289,9.8e-05,2]
[348596332,1736659840416,-397371.52667278,9.8e-05,2]
[348596333,1736659840426,-3201.0931,9.8e-05,2]
[348596334,1736659840435,-152.0,9.819e-05,3]
[348596335,1736659840444,-2099.4621,9.9e-05,2]
[348596336,1736659840453,-96540.95451701,9.9e-05,2]
[348596337,1736659840462,-2777.78784699,9.907e-05,2]
[348596338,1736659840471,-1000.0,9.91e-05,2]
[348596339,1736659840480,-500.0,9.973e-05,2]
[348596340,1736659840489,-1779.792,9.994e-05,2]
[348596341,1736659840497,-150.287,9.994e-05,2]
[348596342,1736659840506,-880.58,9.995e-05,2]
[348596343,1736659840515,-767.06,9.995e-05,2]
[348596344,1736659840524,-500.0,9.995e-05,2]
[348596345,1736659840533,-1319.32,9.995e-05,2]
[348596346,1736659840542,-645.49,9.995e-05,2]
[348596347,1736659840551,-1245.77,9.995e-05,2]
[348596348,1736659840560,-864.69,9.995e-05,2]
[348596349,1736659840568,-1286.06,9.995e-05,2]
[348596350,1736659840577,-1584.3,9.995e-05,2]
[348596352,1736659840586,-1753.34,9.995e-05,2]
[348596354,1736659840595,-500.0,9.996e-05,2]
[348596356,1736659840604,-557.2,9.996e-05,2]
[348596357,1736659840613,-500.0,9.996e-05,2]
[348596359,1736659840626,-689.43,9.996e-05,2]
[348596361,1736659840635,-676.6,9.996e-05,2]
[348596363,1736659840644,-500.0,9.996e-05,2]
[348596365,1736659840653,-500.0,9.996e-05,2]
[348596367,1736659840662,-620.91,9.996e-05,2]
[348596369,1736659840671,-500.0,9.996e-05,2]
[348596371,1736659840680,-697.45,9.996e-05,2]
[348596373,1736659840689,-500.0,9.996e-05,2]
[348596375,1736659840699,-528.61,9.996e-05,2]
[348596377,1736659840708,-500.0,9.996e-05,2]
[348596379,1736659840718,-719.41,9.996e-05,2]
[348596381,1736659840727,-500.0,9.996e-05,2]
[348596383,1736659840736,-2612.62,9.996e-05,2]
[348596385,1736659840745,-500.0,9.996e-05,2]
[348596387,1736659840754,-500.0,9.996e-05,2]
[348596389,1736659840763,-500.0,9.996e-05,2]
[348596391,1736659840772,-521.1,9.996e-05,2]
[348596393,1736659840781,-6941.74,9.996e-05,2]
[348596395,1736659840790,-500.0,9.996e-05,2]
[348596397,1736659840800,-500.0,9.996e-05,2]
[348596399,1736659840809,-500.0,9.996e-05,2]
[348596401,1736659840818,-500.0,9.996e-05,2]
[348596403,1736659840827,-771.86,9.996e-05,2]
[348596405,1736659840836,-500.0,9.996e-05,2]
[348596407,1736659840845,-657.35,9.996e-05,2]
[348596409,1736659840854,-1137.38,9.996e-05,2]
[348596411,1736659840863,-500.0,9.996e-05,2]
[348596413,1736659840872,-500.0,9.996e-05,2]
[348596415,1736659840881,-627.88,9.996e-05,2]
[348596417,1736659840890,-506.40126347,9.996e-05,2]
[348596419,1736659840899,-700.85,9.996e-05,2]
[348596421,1736659840908,-500.0,9.996e-05,2]
[348596423,1736659840917,-500.0,9.996e-05,2]
[348596425,1736659840927,-500.0,9.996e-05,2]
[348596427,1736659840935,-723.76,9.996e-05,2]
[348596429,1736659840945,-806.41,9.996e-05,2]
[348596431,1736659840954,-500.0,9.996e-05,2]
[348596433,1736659840964,-569.09,9.996e-05,2]
[348596435,1736659840973,-500.0,9.996e-05,2]
[348596437,1736659840982,-561.69,9.996e-05,2]
[348596439,1736659840992,-500.0,9.996e-05,2]
[348596441,1736659841001,-633.04,9.996e-05,2]
[348596443,1736659841010,-500.46,9.996e-05,2]
[348596445,1736659841019,-500.0,9.996e-05,2]
[348596447,1736659841028,-1016.67,9.996e-05,2]
[348596449,1736659841036,-500.0,9.996e-05,2]
[348596451,1736659841045,-885.93,9.996e-05,2]
[348596452,1736659841054,-2604.65,9.996e-05,2]
[348596454,1736659841063,-653.53,9.996e-05,2]
[348596456,1736659841072,-737.91,9.996e-05,2]
[348596458,1736659841082,-1052.99,9.996e-05,2]
[348596460,1736659841092,-500.0,9.996e-05,2]
[348596462,1736659841101,-500.0,9.996e-05,2]
[348596464,1736659841110,-2912.32,9.996e-05,2]
[348596466,1736659841119,-1539.58,9.996e-05,2]
[348596468,1736659841128,-697.71,9.996e-05,2]
[348596470,1736659841136,-500.0,9.996e-05,2]
[348596472,1736659841145,-854.66,9.996e-05,2]
[348596474,1736659841154,-528.74,9.996e-05,2]
[348596476,1736659841163,-500.0,9.996e-05,2]
[348596478,1736659841172,-973.65,9.996e-05,2]
[348596480,1736659841181,-754.06,9.996e-05,2]
[348596482,1736659841190,-3034.75,9.996e-05,2]
[348596484,1736659841200,-500.0,9.996e-05,2]
[348596486,1736659841209,-500.0,9.996e-05,2]
[348596488,1736659841218,-941.67,9.996e-05,2]
[348596490,1736659841227,-500.0,9.996e-05,2]
[348596492,1736659841236,-500.0,9.996e-05,2]
[348596494,1736659841245,-500.0,9.996e-05,2]
[348596496,1736659841255,-3121.87,9.996e-05,2]
[348596498,1736659841263,-500.0,9.996e-05,2]
[348596500,1736659841272,-1408.29,9.996e-05,2]
[348596502,1736659841281,-500.0,9.996e-05,2]
[348596504,1736659841290,-544.14,9.996e-05,2]
[348596506,1736659841299,-998.44,9.996e-05,2]
[348596508,1736659841308,-1237.05,9.996e-05,2]
[348596510,1736659841318,-500.0,9.996e-05,2]
[348596512,1736659841326,-794.73,9.996e-05,2]
[348596514,1736659841335,-1045.68,9.996e-05,2]
[348596515,1736659841344,-1555.44,9.996e-05,2]
[348596517,1736659841353,-1050.73,9.996e-05,2]
[348596519,1736659841362,-1991.82,9.996e-05,2]
[348596522,1736659841373,-1448.66,9.996e-05,2]
[348596524,1736659841382,-500.0,9.996e-05,2]
[348596525,1736659841391,-591.34,9.996e-05,2]
[348596527,1736659841400,-2015.91,9.996e-05,2]
[348596529,1736659841409,-500.0,9.996e-05,2]
[348596531,1736659841418,-514.73,9.996e-05,2]
[348596533,1736659841427,-500.0,9.996e-05,2]
[348596535,1736659841436,-4010.28,9.996e-05,2]
[348596537,1736659841445,-1000.0,9.996e-05,2]
[348596539,1736659841454,-543.29,9.996e-05,2]
[348596541,1736659841463,-1526.67,9.996e-05,2]
[348596543,1736659841472,-970.0,9.996e-05,2]
[348596545,1736659841482,-701.03,9.996e-05,2]
[348596548,1736659841491,-500.0,9.997e-05,2]
[348596549,1736659841501,-2357.19,9.997e-05,2]
[348596551,1736659841510,-1597.31,9.997e-05,2]
[348596553,1736659841519,-500.0,9.997e-05,2]
[348596555,1736659841528,-500.0,9.997e-05,2]
[348596558,1736659841537,-500.0,9.997e-05,2]
[348596560,1736659841546,-500.0,9.997e-05,2]
[348596561,1736659841555,-500.0,9.997e-05,2]
[348596563,1736659841565,-500.0,9.997e-05,2]
[348596565,1736659841575,-641.22580004,9.997e-05,2]
[348596567,1736659841586,-500.0,9.997e-05,2]
[348596570,1736659841595,-500.0,9.997e-05,2]
[348596571,1736659841607,-500.0,9.997e-05,2]
[348596594,1736659841810,-500.0,9.997e-05,2]
[348596596,1736659841820,-500.0,9.997e-05,2]
[348596598,1736659841828,-500.0,9.997e-05,2]
[348596600,1736659841838,-560.48737679,9.997e-05,2]
[348596602,1736659841847,-500.0,9.997e-05,2]
[348596604,1736659841856,-500.0,9.997e-05,2]
[348596606,1736659841865,-500.0,9.997e-05,2]
[348596608,1736659841874,-500.0,9.997e-05,2]
[348596610,1736659841883,-630.46777791,9.997e-05,2]
[348596612,1736659841891,-500.0,9.997e-05,2]
[348596614,1736659841901,-500.0,9.997e-05,2]
[348596616,1736659841910,-500.0,9.997e-05,2]
[348596618,1736659841919,-500.0,9.997e-05,2]
[348596620,1736659841927,-500.0,9.997e-05,2]
[348596622,1736659841936,-500.0,9.997e-05,2]
[348596624,1736659841945,-500.0,9.997e-05,2]
[348596626,1736659841955,-500.0,9.997e-05,2]
[348596628,1736659841963,-500.0,9.997e-05,2]
[348596630,1736659841973,-500.0,9.997e-05,2]
[348596632,1736659841982,-500.0,9.997e-05,2]
[348596634,1736659841991,-792.35,9.997e-05,2]
[348596636,1736659842000,-500.0,9.997e-05,2]
[348596638,1736659842009,-575.99,9.997e-05,2]
[348596640,1736659842018,-500.0,9.997e-05,2]
[348596642,1736659842027,-726.67,9.997e-05,2]
[348596644,1736659842036,-500.0,9.997e-05,2]
[348596646,1736659842046,-716.62,9.997e-05,2]
[348596648,1736659842055,-587.75,9.997e-05,2]
[348596650,1736659842064,-510.09,9.997e-05,2]
[348596652,1736659842073,-830.0,9.997e-05,2]
[348596654,1736659842083,-500.0,9.997e-05,2]
[348596656,1736659842092,-500.0,9.997e-05,2]
[348596658,1736659842102,-500.0,9.997e-05,2]
[348596660,1736659842111,-500.0,9.997e-05,2]
[348596662,1736659842120,-959.67,9.997e-05,2]
[348596664,1736659842130,-525.37,9.997e-05,2]
[348596666,1736659842138,-873.1,9.997e-05,2]
[348596668,1736659842148,-500.0,9.997e-05,2]
[348596669,1736659842157,-980.63,9.997e-05,2]
[348596670,1736659842165,-500.0,9.997e-05,2]
[348596671,1736659842175,-500.0,9.997e-05,2]
[348596672,1736659842183,-665.19,9.997e-05,2]
[348596673,1736659842192,-500.0,9.997e-05,2]
[348596674,1736659842202,-500.0,9.997e-05,2]
[348596675,1736659842210,-1576.02,9.997e-05,2]
[348596676,1736659842220,-500.0,9.997e-05,2]
[348596677,1736659842228,-803.21,9.997e-05,2]
[348596679,1736659842237,-2258.64,9.997e-05,2]
[348596681,1736659842246,-500.0,9.998e-05,2]
[348596682,1736659842256,-942.56,9.998e-05,2]
[348596684,1736659842265,-764.32,9.998e-05,2]
[348596686,1736659842274,-500.0,9.998e-05,2]
[348596688,1736659842284,-583.63,9.998e-05,2]
[348596690,1736659842293,-500.0,9.998e-05,2]
[348596692,1736659842302,-500.0,9.998e-05,2]
[348596694,1736659842311,-1012.55,9.998e-05,2]
[348596697,1736659842320,-663.22,9.998e-05,2]
[348596699,1736659842329,-788.28,9.998e-05,2]
[348596701,1736659842338,-877.76,9.998e-05,2]
[348596703,1736659842347,-573.64,9.998e-05,2]
[348596705,1736659842356,-500.0,9.998e-05,2]
[348596706,1736659842366,-500.0,9.998e-05,2]
[348596708,1736659842375,-500.0,9.998e-05,2]
[348596710,1736659842384,-641.83,9.998e-05,2]
[348596712,1736659842393,-500.0,9.998e-05,2]
[348596714,1736659842402,-806.4,9.998e-05,2]
[348596716,1736659842411,-857.54,9.998e-05,2]
[348596718,1736659842420,-500.0,9.998e-05,2]
[348596720,1736659842429,-714.75,9.998e-05,2]
[348596722,1736659842439,-500.0,9.998e-05,2]
[348596724,1736659842448,-500.0,9.998e-05,2]
[348596726,1736659842457,-500.0,9.998e-05,2]
[348596728,1736659842466,-500.0,9.998e-05,2]
[348596730,1736659842475,-500.0,9.998e-05,2]
[348596732,1736659842483,-848.28,9.998e-05,2]
[348596734,1736659842492,-500.0,9.998e-05,2]
[348596736,1736659842501,-500.0,9.998e-05,2]
[348596738,1736659842510,-500.0,9.998e-05,2]
[348596740,1736659842519,-542.8,9.998e-05,2]
[348596742,1736659842528,-843.87,9.998e-05,2]
[348596744,1736659842537,-805.71,9.998e-05,2]
[348596746,1736659842546,-500.0,9.998e-05,2]
[348596748,1736659842555,-500.0,9.998e-05,2]
[348596750,1736659842564,-933.57,9.998e-05,2]
[348596752,1736659842573,-500.0,9.998e-05,2]
[348596754,1736659842582,-625.23,9.998e-05,2]
[348596756,1736659842591,-229.43426445,9.998e-05,2]
[348596758,1736659842601,-500.0,9.998e-05,2]
[348596760,1736659842609,-500.0,9.998e-05,2]
[348596762,1736659842621,-934.14,9.998e-05,2]
[348596764,1736659842630,-500.0,9.998e-05,2]
[348596766,1736659842638,-500.0,9.998e-05,2]
[348596768,1736659842647,-3754.06,9.998e-05,2]
[348596770,1736659842656,-500.0,9.998e-05,2]
[348596772,1736659842666,-500.0,9.998e-05,2]
[348596774,1736659842676,-500.0,9.998e-05,2]
[348596776,1736659842685,-500.0,9.998e-05,2]
[348596778,1736659842694,-794.83,9.998e-05,2]
[348596779,1736659842704,-500.0,9.998e-05,2]
[348596781,1736659842714,-714.82,9.998e-05,2]
[348596783,1736659842723,-500.0,9.998e-05,2]
[348596785,1736659842732,-826.19,9.998e-05,2]
[348596787,1736659842742,-500.0,9.998e-05,2]
[348596789,1736659842751,-699.31,9.998e-05,2]
[348596791,1736659842761,-735.35,9.998e-05,2]
[348596792,1736659842770,-2546.9,9.998e-05,2]
[348596793,1736659842779,-625.36,9.998e-05,2]
[348596794,1736659842788,-3093.34,9.998e-05,2]
[348596795,1736659842797,-500.0,9.998e-05,2]
[348596796,1736659842807,-799.64,9.998e-05,2]
[348596797,1736659842817,-1286.8,9.998e-05,2]
[348596798,1736659842826,-500.0,9.998e-05,2]
[348596799,1736659842835,-500.0,9.998e-05,2]
[348596800,1736659842845,-6640.37,9.998e-05,2]
[348596801,1736659842855,-500.0,9.998e-05,2]
[348596802,1736659842864,-178.35021467,9.998e-05,2]
[348596803,1736659842873,-769.12,9.998e-05,2]
[348596804,1736659842883,-520.62,9.998e-05,2]
[348596805,1736659842892,-706.43,9.998e-05,2]
[348596806,1736659842902,-1137.99,9.998e-05,2]
[348596807,1736659842911,-500.0,9.998e-05,2]
[348596808,1736659842920,-2110.9,9.998e-05,2]
[348596809,1736659842929,-500.0,9.998e-05,2]
[348596810,1736659842938,-640.84,9.998e-05,2]
[348596811,1736659842947,-500.0,9.998e-05,2]
[348596812,1736659842956,-500.0,9.998e-05,2]
[348596813,1736659842965,-874.7,9.998e-05,2]
[348596814,1736659842974,-4019.97,9.998e-05,2]
[348596815,1736659842983,-4138.03,9.998e-05,2]
[348596816,1736659842994,-500.0,9.998e-05,2]
[348596817,1736659843003,-863.7,9.998e-05,2]
[348596818,1736659843012,-1244.11,9.998e-05,2]
[348596819,1736659843022,-801.56,9.998e-05,2]
[348596820,1736659843032,-831.37,9.998e-05,2]
[348596821,1736659843041,-2467.19,9.998e-05,2]
[348596822,1736659843050,-1975.54,9.998e-05,2]
[348596823,1736659843059,-920.32,9.998e-05,2]
[348596824,1736659843069,-571.08,9.998e-05,2]
[348596825,1736659843079,-500.0,9.998e-05,2]
[348596826,1736659843088,-590.8,9.998e-05,2]
[348596827,1736659843098,-500.0,9.998e-05,2]
[348596828,1736659843107,-1465.92,9.998e-05,2]
[348596829,1736659843116,-1269.4,9.999e-05,2]
[348596830,1736659843125,-456.43371346,9.999e-05,2]
[348596831,1736659843134,-941.06,9.999e-05,2]
[348596832,1736659843143,-500.0,9.999e-05,2]
[348596833,1736659843152,-500.0,9.999e-05,2]
[348596834,1736659843161,-500.0,9.999e-05,2]
[348596835,1736659843170,-512.8783389,9.999e-05,2]
[348596836,1736659843179,-500.0,9.999e-05,2]
[348596837,1736659843188,-755.81,9.999e-05,2]
[348596838,1736659843197,-500.0,9.999e-05,2]
[348596840,1736659843206,-500.0,9.999e-05,2]
[348596841,1736659843215,-1504.58,9.999e-05,2]
[348596842,1736659843224,-500.0,9.999e-05,2]
[348596843,1736659843234,-500.0,9.999e-05,2]
[348596844,1736659843244,-500.0,9.999e-05,2]
[348596845,1736659843253,-503.58228007,9.999e-05,2]
[348596846,1736659843262,-500.0,9.999e-05,2]
[348596847,1736659843271,-500.0,9.999e-05,2]
[348596848,1736659843280,-500.0,9.999e-05,2]
[348596849,1736659843289,-1113.97,9.999e-05,2]
[348596850,1736659843299,-500.0,9.999e-05,2]
[348596851,1736659843308,-500.0,9.999e-05,2]
[348596852,1736659843317,-500.0,9.999e-05,2]
[348596853,1736659843326,-500.0,9.999e-05,2]
[348596854,1736659843335,-815.71,9.999e-05,2]
[348596855,1736659843344,-500.0,9.999e-05,2]
[348596856,1736659843353,-500.0,9.999e-05,2]
[348596857,1736659843362,-500.0,9.999e-05,2]
[348596858,1736659843371,-500.0,9.999e-05,2]
[348596859,1736659843380,-500.0,9.999e-05,2]
[348596860,1736659843389,-1696.73,9.999e-05,2]
[348596861,1736659843398,-284.63962489,9.999e-05,2]
[348596862,1736659843408,-500.0,9.999e-05,2]
[348596863,1736659843418,-500.0,9.999e-05,2]
[348596864,1736659843427,-500.0,9.999e-05,2]
[348596865,1736659843437,-500.0,9.999e-05,2]
[348596866,1736659843446,-500.0,9.999e-05,2]
[348596867,1736659843455,-500.0,9.999e-05,2]
[348596868,1736659843465,-2596.26,9.999e-05,2]
[348596869,1736659843475,-1634.11,9.999e-05,2]
[348596870,1736659843485,-500.0,9.999e-05,2]
[348596871,1736659843494,-500.0,9.999e-05,2]
[348596872,1736659843503,-500.0,9.999e-05,2]
[348596873,1736659843513,-500.0,9.999e-05,2]
[348596874,1736659843523,-1174.42,9.999e-05,2]
[348596875,1736659843533,-500.0,9.999e-05,2]
[348596876,1736659843543,-500.0,9.999e-05,2]
[348596877,1736659843552,-818.398155,9.999e-05,2]
[348596878,1736659843562,-500.0,9.999e-05,2]
[348596879,1736659843571,-430.82743348,9.999e-05,2]
[348596880,1736659843582,-994.603314,9.999e-05,2]
[348596881,1736659843591,-503.06988373,9.999e-05,2]
[348596882,1736659843601,-500.0,9.999e-05,2]
[348596883,1736659843611,-500.0,9.999e-05,2]
[348596884,1736659843625,-500.0,9.999e-05,2]
[348596885,1736659843634,-500.0,9.999e-05,2]
[348596886,1736659843643,-3387.5,9.999e-05,2]
[348596887,1736659843653,-500.0,9.999e-05,2]
[348596888,1736659843663,-500.0,9.999e-05,2]
[348596889,1736659843671,-500.0,9.999e-05,2]
[348596890,1736659843680,-1192.61,9.999e-05,2]
[348596891,1736659843691,-500.0,9.999e-05,2]
[348596892,1736659843701,-500.0,9.999e-05,2]
[348596893,1736659843710,-500.0,9.999e-05,2]
[348596894,1736659843719,-500.0,9.999e-05,2]
[348596895,1736659843729,-500.0,9.999e-05,2]
[348596896,1736659843739,-500.0,9.999e-05,2]
[348596897,1736659843748,-613.64,9.999e-05,2]
[348596898,1736659843757,-500.0,9.999e-05,2]
[348596899,1736659843767,-500.0,9.999e-05,2]
[348596900,1736659843776,-500.0,9.999e-05,2]
[348596901,1736659843785,-500.0,9.999e-05,2]
[348596902,1736659843795,-500.0,9.999e-05,2]
[348596903,1736659843805,-500.0,9.999e-05,2]
[348596904,1736659843814,-500.0,9.999e-05,2]
[348596905,1736659843823,-500.0,9.999e-05,2]
[348596906,1736659843833,-500.0,9.999e-05,2]
[348596907,1736659843842,-544.79,9.999e-05,2]
[348596908,1736659843852,-500.0,9.999e-05,2]
[348596909,1736659843862,-500.0,9.999e-05,2]
[348596910,1736659843872,-500.0,9.999e-05,2]
[348596911,1736659843882,-500.0,9.999e-05,2]
[348596912,1736659843891,-500.0,9.999e-05,2]
[348596913,1736659843900,-3365.35,9.999e-05,2]